bitfinex/quotes_SOLUSD_20241005
["timestamp","ask_amount","ask_price","bid_price","bid_amount"]
[1728107041021,6.9653,143.57,143.53,6.967]
[1728107041743,6.9658,143.56,143.52,22.28]
[1728107042129,6.9653,143.57,143.52,22.28]
[1728107042517,6.9657,143.56,143.51,32.2525178]
[1728107043728,6.9657,143.56,143.51,25.2845178]
[1728107043931,6.9657,143.56,143.52,6.9676]
[1728107044325,6.9653,143.57,143.52,6.9676]
[1728107044644,6.9653,143.57,143.52,14.8325178]
[1728107045441,6.9653,143.57,143.53,1.36733524]
[1728107046833,6.9653,143.57,143.52,14.8325178]
[1728107047220,0.8489882,143.58,143.53,9.2322538]
[1728107047422,0.8489882,143.58,143.54,14.8315178]
[1728107047635,0.8489882,143.58,143.55,16.19721699]
[1728107047836,0.8489882,143.58,143.56,14.8305178]
[1728107048047,0.8489882,143.58,143.57,1.3662778]
[1728107048219,0.8489882,143.58,143.57,16.1963956]
[1728107048424,0.8489882,143.58,143.56,7.8649178]
[1728107048630,0.8489882,143.58,143.56,6.9656]
[1728107049749,0.8489882,143.58,143.52,17.4186]
[1728107049750,7.8138882,143.58,143.52,17.4186]
[1728107049953,7.8138882,143.58,143.53,6.9667]
[1728107051855,7.8138882,143.58,143.53,14.8316178]
[1728107052033,7.8138882,143.58,143.54,6.9666]
[1728107052232,0.8489882,143.58,143.54,6.9666]
[1728107052757,0.8489882,143.58,143.52,17.4186]
[1728107053053,6.9652,143.57,143.53,8.33423053]
[1728107053241,0.8489882,143.58,143.53,16.19914833]
[1728107053443,7.8136882,143.58,143.53,16.19914833]
[1728107054129,7.8136882,143.58,143.53,14.8319178]
[1728107058962,7.8136882,143.58,143.53,7.8649178]
[1728107059145,7.8136882,143.58,143.54,6.9666]
[1728107059451,0.8489882,143.58,143.54,6.9666]
[1728107060831,9.55531554,143.58,143.54,6.9666]
[1728107061031,9.55531554,143.58,143.53,14.8320178]
[1728107061232,7.8138882,143.58,143.53,14.8320178]
[1728107061653,6.9653,143.57,143.53,14.8320178]
[1728107062040,7.8136882,143.58,143.53,16.19924521]
[1728107063256,7.8136882,143.58,143.53,9.23214521]
[1728107063457,7.8136882,143.58,143.54,6.9665]
[1728107064551,7.8136882,143.58,143.53,7.8649178]
[1728107064752,7.8136882,143.58,143.53,14.8320178]
[1728107065766,7.8136882,143.58,143.54,8.33355605]
[1728107065948,0.8489882,143.58,143.55,7.8649178]
[1728107066149,0.8489882,143.58,143.57,6.9652]
[1728107066957,0.8489882,143.58,143.56,6.9656]
[1728107067469,0.8489882,143.58,143.54,17.4161]
[1728107067470,0.8489882,143.58,143.54,24.3827]
[1728107067778,7.8139882,143.58,143.54,17.4161]
[1728107068071,7.8139882,143.58,143.54,24.3825]
[1728107068257,0.8489882,143.58,143.54,24.3825]
[1728107070158,7.8137882,143.58,143.54,24.3825]
[1728107070361,6.9652,143.57,143.5,34.8427]
[1728107070679,8.70725333,143.56,143.52,6.9675]
[1728107070879,6.9657,143.56,143.52,6.9675]
[1728107071260,6.9653,143.57,143.52,6.9675]
[1728107071455,0.8489882,143.58,143.54,6.9664]
[1728107071776,7.8138882,143.58,143.53,24.3843]
[1728107072575,7.8138882,143.58,143.53,25.75164184]
[1728107075280,6.9653,143.57,143.53,24.3843]
[1728107075775,6.9653,143.57,143.53,25.75169841]
[1728107076361,6.9653,143.57,143.53,24.3843]
[1728107076570,6.9662,143.55,143.5,17.4211]
[1728107077270,15.4606,143.57,143.5,17.4211]
[1728107077271,15.4606,143.57,143.51,6.9681]
[1728107077463,6.9658,143.56,143.52,6.9676]
[1728107077865,22.4259,143.57,143.53,6.967]
[1728107078371,15.4606,143.57,143.54,1.3672403]
[1728107078579,15.4606,143.57,143.53,6.967]
[1728107078883,15.4606,143.57,143.54,8.33359568]
[1728107079407,15.4606,143.57,143.54,6.9666]
[1728107079681,15.4606,143.57,143.53,7.8649178]
[1728107079682,24.16723794,143.57,143.52,17.4186]
[1728107079875,24.16723794,143.57,143.52,24.3862]
[1728107081870,24.16723794,143.57,143.53,1.36730057]
[1728107081871,22.4258,143.57,143.53,1.36730057]
[1728107083402,22.4258,143.57,143.52,24.3862]
[1728107084090,22.4258,143.57,143.53,1.36729523]
[1728107086392,22.4258,143.57,143.52,17.4186]
[1728107086571,15.4606,143.57,143.53,6.9668]
[1728107086772,15.4606,143.57,143.54,1.36700159]
[1728107086975,15.4606,143.57,143.54,6.9665]
[1728107089994,15.4606,143.57,143.53,14.8319178]
[1728107091477,15.4606,143.57,143.53,6.967]
[1728107095697,22.4259,143.57,143.52,17.4186]
[1728107095888,22.4259,143.57,143.52,24.3861]
[1728107100996,15.4606,143.57,143.54,6.9663]
[1728107101202,15.4606,143.57,143.55,6.9662]
[1728107102492,0.8489882,143.58,143.57,6.9652]
[1728107103383,0.8489882,143.58,143.57,8.33123451]
[1728107104902,0.8489882,143.58,143.57,16.32164231]
[1728107105087,0.8489882,143.58,143.57,40.22401631]
[1728107105587,6.0843,143.67,143.63,6.9622]
[1728107106306,13.0446,143.67,143.62,14.8276178]
[1728107106521,13.0446,143.67,143.62,6.9627]
[1728107106686,11.5446,143.67,143.62,6.9627]
[1728107108982,6.9609,143.66,143.61,24.3704]
[1728107109283,6.9613,143.65,143.61,17.4072]
[1728107110283,4.5843,143.67,143.6,6.9637]
[1728107110608,4.5843,143.67,143.6,1.36505221]
[1728107110609,6.9619,143.64,143.6,1.36505221]
[1728107110789,6.9613,143.65,143.6,8.32875221]
[1728107111423,6.4613,143.65,143.6,8.32875221]
[1728107111911,6.4613,143.65,143.6,6.9637]
[1728107113399,24.027864,143.66,143.6,1.36507395]
[1728107113719,6.9623,143.63,143.58,24.3762]
[1728107115398,6.9623,143.63,143.58,32.2411178]
[1728107115808,6.9623,143.63,143.59,6.9642]
[1728107116193,15.783,143.64,143.59,7.8649178]
[1728107116393,15.783,143.64,143.61,6.963]
[1728107116606,15.783,143.64,143.62,1.36463266]
[1728107116794,6.9609,143.66,143.62,8.32723266]
[1728107117612,6.9609,143.66,143.62,6.9626]
[1728107117808,6.9609,143.66,143.63,1.36450434]
[1728107118018,6.9609,143.66,143.62,6.9626]
[1728107119315,6.9609,143.66,143.63,1.36451894]
[1728107120096,6.9609,143.66,143.62,6.9626]
[1728107121818,19.9266,143.67,143.63,8.3266628]
[1728107122008,19.9266,143.67,143.63,6.9622]
[1728107125636,19.9266,143.67,143.64,1.36391538]
[1728107125922,26.9595,143.69,143.64,8.32551538]
[1728107126831,26.9595,143.69,143.64,6.9616]
[1728107127203,26.9595,143.69,143.62,25.2711178]
[1728107127398,0.8489882,143.72,143.64,7.8649178]
[1728107127715,6.9585,143.71,143.67,6.9603]
[1728107128024,6.9585,143.71,143.66,24.3623]
[1728107128222,6.9585,143.71,143.67,1.36321677]
[1728107128600,6.9585,143.71,143.66,24.3623]
[1728107130131,6.959,143.7,143.66,24.3623]
[1728107130307,6.959,143.7,143.66,17.4016]
[1728107131343,6.959,143.7,143.67,1.36321612]
[1728107132021,6.959,143.7,143.66,24.3623]
[1728107139233,0.8489882,143.72,143.66,24.3623]
[1728107139411,6.9585,143.71,143.66,24.3623]
[1728107142028,1.73978351,143.7,143.66,24.3623]
[1728107142232,6.9591,143.7,143.66,24.3623]
[1728107142429,1.73984501,143.69,143.63,17.4051]
[1728107142652,6.9599,143.68,143.63,17.4051]
[1728107142939,6.9599,143.68,143.64,6.9618]
[1728107146837,6.9594,143.69,143.65,6.9613]
[1728107153435,6.959,143.7,143.65,6.9613]
[1728107158042,0.8489882,143.72,143.66,6.9607]
[1728107158355,6.9584,143.71,143.66,6.9607]
[1728107161341,6.9591,143.7,143.66,6.9607]
[1728107161562,6.9591,143.7,143.65,24.3638]
[1728107161968,2.5888523,143.72,143.65,24.3638]
[1728107162150,23.776884,143.71,143.64,6.9617]
[1728107162351,6.9595,143.69,143.64,6.9617]
[1728107162557,6.9595,143.69,143.65,1.36363901]
[1728107162866,6.96,143.68,143.63,6.9622]
[1728107163547,6.96,143.68,143.64,6.9617]
[1728107163747,6.96,143.68,143.63,6.9623]
[1728107163944,6.96,143.68,143.62,25.2712178]
[1728107164270,1.74004911,143.67,143.62,17.4063]
[1728107164473,22.0579,143.7,143.62,17.4063]
[1728107164650,6.96,143.68,143.63,6.9621]
[1728107165558,8.70064536,143.67,143.62,24.369]
[1728107166157,6.96,143.68,143.64,6.9618]
[1728107166360,6.96,143.68,143.65,1.36390148]
[1728107166670,6.96,143.68,143.64,6.9618]
[1728107166858,6.96,143.68,143.63,6.9622]
[1728107167060,6.96,143.68,143.64,6.9617]
[1728107167256,1.74013516,143.68,143.63,6.9622]
[1728107167571,6.9604,143.67,143.63,6.9622]
[1728107168455,6.96,143.68,143.63,6.9622]
[1728107170465,22.0579,143.7,143.64,6.9617]
[1728107170677,6.9598,143.69,143.64,6.9617]
[1728107172677,22.0579,143.7,143.66,6.9608]
[1728107172873,0.8489882,143.72,143.67,18.76458522]
[1728107173055,0.8489882,143.72,143.67,26.62950302]
[1728107173260,0.8489882,143.72,143.68,6.9598]
[1728107173558,7.8069882,143.72,143.68,6.9598]
[1728107174777,0.8489882,143.72,143.68,6.9598]
[1728107175351,0.8489882,143.72,143.69,8.32191098]
[1728107175551,0.8489882,143.72,143.69,6.9592]
[1728107175853,0.8489882,143.72,143.67,25.2658178]
[1728107176055,0.8489882,143.72,143.68,6.9598]
[1728107178363,1.73962849,143.71,143.67,17.4009]
[1728107178581,1.73962849,143.71,143.64,16.4037]
[1728107178582,6.9594,143.69,143.64,24.3657]
[1728107178965,25.51694789,143.7,143.64,17.404]
[1728107179176,6.9595,143.69,143.64,24.3657]
[1728107179482,0.8489882,143.72,143.65,7.8649178]
[1728107181088,20.0,143.71,143.67,6.9603]
[1728107181256,7.8069882,143.72,143.67,6.9603]
[1728107181884,7.8069882,143.72,143.68,6.9598]
[1728107182083,0.8489882,143.72,143.68,6.9598]
[1728107182390,0.8489882,143.72,143.69,6.9592]
[1728107183683,0.8489882,143.72,143.71,6.9584]
[1728107183864,0.8489882,143.72,143.7,6.9585]
[1728107186493,0.8489882,143.72,143.71,1.36203865]
[1728107188689,0.8489882,143.72,143.7,6.9585]
[1728107193067,0.8489882,143.72,143.7,8.32046388]
[1728107200392,0.8489882,143.72,143.7,6.9585]
[1728107201190,0.8489882,143.72,143.7,8.32047304]
[1728107202290,0.8489882,143.72,143.7,1.36197304]
[1728107202495,0.8489882,143.72,143.71,6.9584]
[1728107203590,0.8489882,143.72,143.7,24.3555]
[1728107204367,0.8489882,143.72,143.71,1.36198607]
[1728107204789,0.8489882,143.72,143.7,24.3555]
[1728107205375,0.8489882,143.72,143.7,25.71773734]
[1728107208197,0.8489882,143.72,143.7,24.3555]
[1728107208594,0.8489882,143.72,143.71,1.36200994]
[1728107209092,0.8489882,143.72,143.7,24.3555]
[1728107210970,0.8489882,143.72,143.71,1.36198295]
[1728107211175,0.8489882,143.72,143.7,17.3967]
[1728107212076,0.8489882,143.72,143.7,18.75902723]
[1728107212285,0.8489882,143.72,143.7,17.3967]
[1728107215672,0.8489882,143.72,143.7,18.75902214]
[1728107218595,0.8489882,143.72,143.69,1.36234718]
[1728107218795,0.8489882,143.72,143.68,6.9598]
[1728107219906,0.8489882,143.72,143.69,1.36274126]
[1728107220274,0.8489882,143.72,143.68,6.9598]
[1728107220475,0.8489882,143.72,143.68,14.8247178]
[1728107222687,0.8489882,143.72,143.66,6.9605]
[1728107222883,0.8489882,143.72,143.64,25.2689178]
[1728107222884,21.786,143.7,143.64,25.2689178]
[1728107223101,21.786,143.7,143.62,1.21204895]
[1728107223102,6.9602,143.68,143.63,6.9622]
[1728107223698,6.9602,143.68,143.64,30.0]
[1728107224031,6.9602,143.68,143.63,6.9622]
[1728107224484,6.9602,143.68,143.64,1.36419836]
[1728107225110,21.786,143.7,143.64,1.36395284]
[1728107225294,6.9594,143.69,143.64,6.9614]
[1728107226104,6.9594,143.69,143.63,25.2698178]
[1728107226293,6.9594,143.69,143.65,6.9612]
[1728107228621,6.9594,143.69,143.64,6.9617]
[1728107231532,8.70003922,143.68,143.64,6.9617]
[1728107232106,21.786,143.7,143.65,6.9611]
[1728107232107,28.7453,143.7,143.65,6.9611]
[1728107232893,6.9595,143.69,143.65,6.9611]
[1728107233890,28.7449,143.7,143.65,6.9611]
[1728107234095,21.786,143.7,143.66,6.9607]
[1728107235425,28.7449,143.7,143.66,6.9607]
[1728107236309,8.69931954,143.69,143.65,17.4027]
[1728107236510,6.9594,143.69,143.65,24.3639]
[1728107237635,6.9594,143.69,143.65,17.4027]
[1728107239209,6.9599,143.68,143.62,17.4063]
[1728107239420,6.9599,143.68,143.63,6.9621]
[1728107240431,6.9606,143.67,143.62,24.369]
[1728107241625,6.9606,143.67,143.63,8.32668489]
[1728107241947,6.9606,143.67,143.63,6.9622]
[1728107243431,23.776884,143.69,143.64,1.36433713]
[1728107243754,6.9599,143.68,143.64,1.36433713]
[1728107243913,6.9599,143.68,143.63,6.9622]
[1728107245113,6.9599,143.68,143.63,8.32642011]
[1728107245937,28.7449,143.7,143.64,18.76782032]
[1728107246235,28.7449,143.7,143.64,17.4036]
[1728107246620,21.786,143.7,143.64,17.4036]
[1728107246822,21.786,143.7,143.66,6.9604]
[1728107247338,28.7451,143.7,143.66,6.9604]
[1728107254071,28.7451,143.7,143.67,1.3634213]
[1728107254350,28.7451,143.7,143.66,6.9604]
[1728107261232,21.786,143.7,143.65,6.9612]
[1728107261441,6.9594,143.69,143.65,6.9612]
[1728107263048,28.745,143.7,143.65,6.9612]
[1728107265255,21.786,143.7,143.64,17.4036]
[1728107265456,6.96,143.68,143.64,24.3654]
[1728107267342,20.0,143.69,143.64,24.3654]
[1728107267541,26.9595,143.69,143.64,24.3654]
[1728107268260,28.745,143.7,143.66,6.9608]
[1728107270264,28.745,143.7,143.64,17.4036]
[1728107270471,28.745,143.7,143.65,6.9612]
[1728107273246,21.786,143.7,143.64,24.3653]
[1728107273451,6.9599,143.68,143.64,24.3653]
[1728107274545,6.9595,143.69,143.64,24.3653]
[1728107280356,21.786,143.7,143.64,24.3653]
[1728107280557,6.96,143.68,143.64,24.3653]
[1728107281161,6.961,143.66,143.61,17.4076]
[1728107281458,20.0,143.69,143.62,1.36437671]
[1728107281657,26.9594,143.69,143.65,6.9612]
[1728107282271,26.9594,143.69,143.58,1.21235649]
[1728107282272,0.25098,143.64,143.58,1.21235649]
[1728107282580,0.25098,143.64,143.48,34.8478]
[1728107282581,28.8116,143.59,143.48,34.8478]
[1728107282761,6.9652,143.57,143.5,7.8649178]
[1728107283552,21.8473,143.59,143.51,6.9681]
[1728107283755,6.9657,143.56,143.51,6.9681]
[1728107284878,6.9652,143.57,143.51,6.9681]
[1728107285566,21.8473,143.59,143.52,1.36728237]
[1728107285777,21.8473,143.59,143.55,6.9661]
[1728107286074,21.8473,143.59,143.54,6.9666]
[1728107294771,6.9648,143.58,143.53,6.967]
[1728107295284,6.9648,143.58,143.54,6.9666]
[1728107297391,21.8473,143.59,143.55,8.33282241]
[1728107297603,21.8473,143.59,143.57,6.9652]
[1728107297604,6.6653,143.59,143.57,6.9652]
[1728107299265,6.6653,143.59,143.56,6.9656]
[1728107305100,6.6653,143.59,143.57,6.9651]
[1728107306583,23.1473,143.62,143.58,8.33058144]
[1728107306791,16.1845,143.62,143.58,1.36588144]
[1728107307001,16.1845,143.62,143.59,6.9642]
[1728107308203,16.1845,143.62,143.59,8.32967914]
[1728107308378,16.1845,143.62,143.59,6.9642]
[1728107312604,16.1845,143.62,143.6,1.36548747]
[1728107312994,16.1845,143.62,143.6,6.9635]
[1728107314987,16.1845,143.62,143.59,6.9641]
[1728107315181,6.298,143.63,143.59,6.9641]
[1728107315416,6.298,143.63,143.6,8.32866473]
[1728107316414,6.298,143.63,143.61,1.36505159]
[1728107317207,6.298,143.63,143.6,6.9636]
[1728107317411,6.9614,143.65,143.6,6.9636]
[1728107317603,6.9614,143.65,143.61,1.36509575]
[1728107318416,6.9614,143.65,143.6,6.9636]
[1728107318911,29.8642,143.66,143.62,6.9626]
[1728107319898,29.8642,143.66,143.61,8.32800488]
[1728107324705,22.9033,143.66,143.61,9.22982268]
[1728107324912,6.9614,143.65,143.61,8.32800488]
[1728107325095,6.9614,143.65,143.61,6.9631]
[1728107326013,21.74046762,143.64,143.57,17.4124]
[1728107326223,6.9624,143.63,143.58,6.9646]
[1728107327205,6.9624,143.63,143.57,17.4124]
[1728107327206,8.70364972,143.62,143.57,24.3775]
[1728107328223,6.9629,143.62,143.57,24.3775]
[1728107328513,6.9629,143.62,143.57,17.4124]
[1728107328722,6.9624,143.63,143.58,14.8291178]
[1728107329014,6.9624,143.63,143.58,7.8649178]
[1728107329224,6.9624,143.63,143.59,6.9641]
[1728107329790,20.0,143.65,143.59,6.9641]
[1728107330033,6.9619,143.64,143.59,6.9641]
[1728107330315,22.9033,143.66,143.6,6.9637]
[1728107330316,6.9614,143.65,143.6,6.9637]
[1728107330732,29.8642,143.66,143.61,6.9631]
[1728107332421,22.9033,143.66,143.62,8.32722058]
[1728107332818,29.8642,143.66,143.62,1.36462058]
[1728107333004,22.9033,143.66,143.61,17.4076]
[1728107333326,22.9033,143.66,143.6,6.9636]
[1728107333496,6.9619,143.64,143.6,6.9636]
[1728107333696,6.9619,143.64,143.59,7.8649178]
[1728107333896,6.9619,143.64,143.59,14.8291178]
[1728107336020,6.9619,143.64,143.6,6.9637]
[1728107341607,6.9619,143.64,143.59,6.9641]
[1728107341608,1.74070176,143.63,143.59,6.9641]
[1728107341806,6.9619,143.64,143.59,6.9641]
[1728107342533,6.9619,143.64,143.58,25.2761178]
[1728107342735,6.9619,143.64,143.6,6.9636]
[1728107343810,6.9614,143.65,143.6,14.8285178]
[1728107345921,29.8641,143.66,143.61,8.32835699]
[1728107346314,29.8641,143.66,143.61,6.9632]
[1728107346628,29.8641,143.66,143.62,6.9626]
[1728107346931,22.9033,143.66,143.62,6.9626]
[1728107347812,22.9033,143.66,143.64,6.9617]
[1728107349833,6.4581,143.66,143.64,6.9617]
[1728107350038,22.1108,143.69,143.64,6.9617]
[1728107352125,23.85090638,143.69,143.64,6.9617]
[1728107352721,22.1108,143.69,143.64,6.9617]
[1728107353440,23.85091893,143.69,143.64,6.9617]
[1728107354347,22.1108,143.69,143.64,6.9617]
[1728107354722,23.85092057,143.69,143.64,6.9617]
[1728107355322,6.9604,143.67,143.62,17.4064]
[1728107355531,1.74018728,143.67,143.62,17.4064]
[1728107357244,6.961,143.66,143.62,24.3691]
[1728107357928,8.70068728,143.67,143.62,24.3691]
[1728107358132,20.0,143.68,143.62,17.4064]
[1728107358331,15.1513,143.69,143.62,17.4064]
[1728107358729,8.70013311,143.68,143.63,6.9621]
[1728107359954,6.9599,143.68,143.63,6.9621]
[1728107360122,8.70011599,143.68,143.63,6.9621]
[1728107360823,6.9604,143.67,143.63,6.9621]
[1728107361225,8.70075,143.67,143.63,6.9621]
[1728107361426,6.9604,143.67,143.63,6.9621]
[1728107365149,6.9599,143.68,143.62,17.4064]
[1728107365346,6.9599,143.68,143.64,6.9618]
[1728107379339,6.9612,143.66,143.62,17.4064]
[1728107379667,6.9612,143.66,143.59,23.8269078]
[1728107379668,6.9618,143.64,143.6,6.9636]
[1728107379840,8.70190312,143.65,143.6,6.9636]
[1728107380152,6.9615,143.65,143.6,6.9636]
[1728107380552,1.74061857,143.64,143.56,17.4138]
[1728107380774,6.6328,143.66,143.57,7.8649178]
[1728107380937,6.9623,143.63,143.59,6.9641]
[1728107381941,1.7407572,143.65,143.59,7.8649178]
[1728107381942,20.0,143.65,143.59,7.8649178]
[1728107382154,6.9614,143.65,143.6,6.9636]
[1728107382356,8.70196973,143.65,143.6,6.9636]
[1728107382862,6.9614,143.65,143.6,6.9636]
[1728107383063,8.70197656,143.65,143.6,6.9636]
[1728107383267,6.6328,143.66,143.61,9.22990413]
[1728107383463,6.6328,143.66,143.62,1.36467392]
[1728107383650,6.6328,143.66,143.61,7.8649178]
[1728107383849,13.5937,143.66,143.62,24.3686]
[1728107384361,13.5937,143.66,143.62,17.4059]
[1728107384863,1.74049089,143.65,143.59,25.2755178]
[1728107385059,13.594,143.66,143.61,6.9632]
[1728107385479,1.74048961,143.65,143.61,6.9632]
[1728107385784,8.70188961,143.65,143.6,6.9637]
[1728107385977,6.9622,143.64,143.59,32.2397178]
[1728107386159,1.74074076,143.63,143.59,32.2397178]
[1728107387070,8.70289967,143.64,143.59,32.2397178]
[1728107388283,6.9622,143.64,143.59,32.2397178]
[1728107390088,6.9614,143.65,143.6,8.32864289]
[1728107390289,6.9614,143.65,143.6,6.9634]
[1728107390665,6.9614,143.65,143.61,8.32815008]
[1728107390877,6.9614,143.65,143.61,6.9632]
[1728107391268,8.70197447,143.65,143.61,6.9632]
[1728107391692,1.74057447,143.65,143.59,7.8649178]
[1728107391987,6.6328,143.66,143.61,17.4076]
[1728107392186,8.70197441,143.65,143.61,24.3707]
[1728107392562,6.9609,143.66,143.62,8.32758116]
[1728107393567,8.70196463,143.65,143.61,17.4076]
[1728107393771,6.9615,143.65,143.61,17.4076]
[1728107394488,6.9615,143.65,143.61,24.3707]
[1728107400296,1.74053715,143.64,143.61,17.4076]
[1728107403787,1.74065222,143.67,143.61,17.4076]
[1728107404110,6.9609,143.66,143.61,25.73556111]
[1728107407007,6.9605,143.67,143.62,6.9626]
[1728107407190,6.9605,143.67,143.63,6.9623]
[1728107408487,8.70082854,143.67,143.63,6.9623]
[1728107409494,6.9614,143.65,143.61,17.4076]
[1728107409692,1.74065942,143.64,143.61,17.4076]
[1728107409999,6.9618,143.64,143.61,17.4076]
[1728107410199,20.0,143.67,143.58,24.3763]
[1728107410200,8.70344913,143.63,143.58,24.3763]
[1728107410405,14.77094913,143.63,143.58,24.3763]
[1728107410785,7.80824913,143.63,143.57,14.8301178]
[1728107410997,6.9628,143.62,143.57,14.8301178]
[1728107411198,1.74094396,143.61,143.55,17.4153]
[1728107411403,16.1053,143.6,143.53,6.9668]
[1728107411720,1.74138082,143.59,143.54,6.9665]
[1728107413010,1.74138082,143.59,143.52,7.8649178]
[1728107413215,6.9648,143.58,143.53,6.967]
[1728107413809,14.77433611,143.57,143.52,6.9676]
[1728107414006,6.9663,143.55,143.51,17.4196]
[1728107414302,1.74163879,143.55,143.51,24.3877]
[1728107415206,16.1053,143.54,143.45,16.2409]
[1728107415517,16.1053,143.54,143.49,6.9686]
[1728107415518,24.81383725,143.54,143.49,6.9686]
[1728107416008,16.1053,143.54,143.49,7.8649178]
[1728107416317,6.0675,143.57,143.51,7.8649178]
[1728107416495,6.0675,143.57,143.52,1.36763613]
[1728107416994,6.0675,143.57,143.52,6.9674]
[1728107417610,6.0675,143.57,143.52,8.33503585]
[1728107417792,6.0675,143.57,143.52,6.9674]
[1728107417998,6.0675,143.57,143.53,6.9671]
[1728107418418,23.0702,143.58,143.48,34.8472]
[1728107418419,16.1053,143.58,143.55,7.8649178]
[1728107418628,6.2056,143.6,143.55,7.8649178]
[1728107418629,6.2056,143.6,143.58,6.9643]
[1728107418916,6.2056,143.6,143.57,6.9651]
[1728107422219,6.2056,143.6,143.57,7.8649178]
[1728107422523,15.6714,143.62,143.58,8.33021046]
[1728107423616,15.6714,143.62,143.59,6.964]
[1728107426997,15.6714,143.62,143.6,6.9634]
[1728107427206,6.2056,143.64,143.59,9.23014138]
[1728107428029,6.2056,143.64,143.61,6.9631]
[1728107429328,6.2056,143.64,143.6,6.9636]
[1728107430329,6.2056,143.64,143.6,8.32875615]
[1728107430506,6.2056,143.64,143.61,6.9631]
[1728107434932,1.74057816,143.63,143.59,6.9638]
[1728107435817,14.90850107,143.64,143.59,6.9638]
[1728107436030,14.90850107,143.64,143.6,6.9636]
[1728107437528,6.2056,143.64,143.6,14.8285178]
[1728107439731,7.94626503,143.64,143.57,7.8649178]
[1728107439911,6.9624,143.63,143.58,6.9643]
[1728107440112,1.74079505,143.62,143.58,6.9643]
[1728107440730,8.70389505,143.62,143.57,24.3773]
[1728107441127,8.70428181,143.61,143.57,17.4122]
[1728107441319,6.9633,143.61,143.57,17.4122]
[1728107441836,6.9629,143.62,143.58,6.9647]
[1728107442408,8.70348445,143.63,143.58,6.9647]
[1728107442632,28.70348445,143.63,143.58,6.9647]
[1728107445036,26.9624,143.63,143.58,6.9647]
[1728107445345,28.70330246,143.63,143.58,6.9647]
[1728107445548,26.9624,143.63,143.58,6.9647]
[1728107448323,6.9624,143.63,143.58,6.9647]
[1728107448852,6.2056,143.64,143.59,1.36577174]
[1728107449058,6.2056,143.64,143.6,6.9636]
[1728107449352,6.2056,143.64,143.6,8.3287929]
[1728107450447,6.2056,143.64,143.6,6.9636]
[1728107452751,14.90846874,143.64,143.59,32.2390178]
[1728107454256,13.1678,143.64,143.59,32.2390178]
[1728107456448,14.90857637,143.64,143.59,32.2390178]
[1728107459549,13.1678,143.64,143.59,32.2390178]
[1728107460445,14.90857832,143.64,143.59,32.2390178]
[1728107461059,14.90857832,143.64,143.59,24.3741]
[1728107463541,6.2056,143.64,143.6,8.32914238]
[1728107463945,6.2056,143.64,143.61,26.63771379]
[1728107464146,6.2056,143.64,143.62,8.32710122]
[1728107464956,6.2056,143.64,143.62,6.9624]
[1728107469657,6.2056,143.64,143.61,17.4076]
[1728107469851,15.6714,143.65,143.61,17.4076]
[1728107470057,15.6714,143.65,143.62,6.9626]
[1728107470259,1.74039393,143.64,143.61,17.4076]
[1728107470458,22.6328,143.65,143.61,17.4076]
[1728107471452,22.6328,143.65,143.61,24.3707]
[1728107471977,15.6714,143.65,143.61,24.3707]
[1728107472668,15.6714,143.65,143.62,6.9626]
[1728107482588,22.6328,143.65,143.61,24.3708]
[1728107485491,1.74048233,143.64,143.58,17.4112]
[1728107485791,6.9634,143.61,143.56,6.9652]
[1728107485960,8.70443267,143.61,143.57,30.0]
[1728107486163,8.70443267,143.61,143.56,6.9652]
[1728107486362,1.74103267,143.61,143.57,6.9651]
[1728107486573,13.1197,143.62,143.58,6.9647]
[1728107490618,1.7409659,143.61,143.58,6.9647]
[1728107490890,1.7409659,143.61,143.57,6.9652]
[1728107490891,8.7043659,143.61,143.57,6.9652]
[1728107495406,6.9643,143.59,143.55,17.415]
[1728107495700,1.741373,143.58,143.55,17.415]
[1728107496077,8.70558849,143.59,143.55,24.3812]
[1728107497308,8.70558849,143.59,143.55,17.415]